bitfinex/quotes_SOLUSD_20250928
["timestamp","ask_amount","ask_price","bid_price","bid_amount"]
[1759054505757,0.68,200.92,200.91,38.16]
[1759054506782,0.68,200.96,200.91,55.58073564]
[1759054506985,0.68,200.95,200.91,55.58073564]
[1759054507564,0.68,200.95,200.92,38.16]
[1759054507780,0.68,200.97,200.92,38.16]
[1759054507984,0.68,200.99,200.92,38.16]
[1759054508373,0.68,200.99,200.93,14.97267486]
[1759054508571,0.68,200.98,200.94,38.16]
[1759054508781,0.68,200.97,200.95,4.97636227]
[1759054508987,494.39928643,201.0,200.96,38.16]
[1759054509581,0.68,200.99,200.96,38.16]
[1759054509790,0.68,200.98,200.97,43.13586704]
[1759054511081,494.39928643,201.0,200.97,43.13586704]
[1759054511273,495.09928643,201.0,200.97,43.13586704]
[1759054512291,495.09928643,201.0,200.97,55.57553465]
[1759054512892,494.39928643,201.0,200.97,55.57553465]
[1759054513068,0.7,200.99,200.97,55.57553465]
[1759054513973,494.39928643,201.0,200.97,55.57553465]
[1759054514191,494.39928643,201.0,200.98,14.96893945]
[1759054514411,494.39928643,201.0,200.99,38.16]
[1759054515105,494.39928643,201.0,200.99,58.10281771]
[1759054516496,466.31645483,201.0,200.99,71.69841172]
[1759054516675,406.59787906,201.0,200.99,71.69841172]
[1759054517091,374.93241931,201.0,200.99,71.69841172]
[1759054517393,349.46840556,201.0,200.99,97.69841172]
[1759054518075,294.60319807,201.0,200.99,97.67841172]
[1759054518475,268.6461387,201.0,200.99,97.67841172]
[1759054518702,225.15616954,201.0,200.99,97.67841172]
[1759054520179,225.15616954,201.0,200.99,45.94281771]
[1759054520377,225.84616954,201.0,200.99,84.08281771]
[1759054520996,225.15616954,201.0,200.99,84.08281771]
[1759054521783,225.15616954,201.0,200.99,218.78281771]
[1759054524297,199.468017,201.0,200.99,194.23841172]
[1759054524597,97.09487681,201.0,200.99,194.23841172]
[1759054524794,33.14212069,201.0,200.99,232.37841172]
[1759054525002,0.2,201.04,200.99,269.69370103]
[1759054525201,0.2,201.05,201.04,4.9741345]
[1759054525378,0.2,201.05,201.04,56.70972851]
[1759054525578,0.2,201.05,201.04,58.70459174]
[1759054526388,0.2,201.05,201.04,6.96899773]
[1759054526697,0.2,201.05,201.04,45.10899773]
[1759054527089,0.2,201.05,201.04,6.96899773]
[1759054527415,0.2,201.05,201.04,45.10899773]
[1759054529807,0.89,201.05,201.04,45.10899773]
[1759054530817,0.89,201.05,201.04,179.80899773]
[1759054531625,0.2,201.05,201.04,179.80899773]
[1759054534828,0.89,201.05,201.04,6.96899773]
[1759054535210,0.89,201.05,201.04,45.10899773]
[1759054535917,0.89,201.05,201.04,6.96899773]
[1759054536234,0.89,201.05,201.04,45.10899773]
[1759054536812,0.89,201.05,201.04,43.1141345]
[1759054541537,0.89,201.05,201.04,4.9741345]
[1759054541742,0.89,201.05,201.04,43.0941345]
[1759054542141,0.89,201.05,201.04,4.9741345]
[1759054542334,0.89,201.05,201.04,43.0941345]
[1759054542829,0.89,201.05,201.0,4.97512437]
[1759054543040,0.69,201.04,201.01,38.12]
[1759054543232,0.69,201.03,201.01,38.12]
[1759054543421,0.69,201.02,201.01,43.09487687]
[1759054546243,0.69,201.04,201.01,55.53206904]
[1759054546436,0.69,201.03,201.01,55.53206904]
[1759054546835,0.89,201.05,201.01,55.53206904]
[1759054547138,0.69,201.04,201.01,55.53206904]
[1759054547353,0.69,201.03,201.01,55.53206904]
[1759054548012,0.2,201.05,201.01,55.53206904]
[1759054548458,0.2,201.05,201.01,192.22733029]
[1759054548652,0.89,201.05,201.01,192.22733029]
[1759054549941,0.69,201.04,201.01,192.22733029]
[1759054552547,0.2,201.05,201.01,192.22733029]
[1759054552732,0.88,201.05,201.01,192.22733029]
[1759054552932,0.88,201.05,201.03,4.97438193]
[1759054553133,0.88,201.05,201.04,38.12]
[1759054553750,0.88,201.05,201.03,4.97438193]
[1759054553927,0.88,201.05,201.04,38.12]
[1759054554120,0.2,201.05,201.04,38.12]
[1759054555046,0.2,201.05,201.04,43.0941345]
[1759054560250,0.2,201.05,201.04,4.9741345]
[1759054560553,0.2,201.05,201.04,139.6741345]
[1759054560760,0.2,201.05,201.04,179.78909722]
[1759054565059,0.2,201.05,201.04,141.66909722]
[1759054565263,0.2,201.05,201.04,179.78909722]
[1759054571364,0.2,201.05,201.04,141.66909722]
[1759054571568,0.2,201.05,201.04,179.78909722]
[1759054572745,0.9,201.05,201.04,141.66909722]
[1759054572939,0.9,201.05,201.04,179.78909722]
[1759054573777,0.9,201.05,201.04,141.66909722]
[1759054573949,0.9,201.05,201.04,179.78909722]
[1759054576065,0.9,201.05,201.04,4.9741345]
[1759054576367,0.9,201.05,201.01,12.43719217]
[1759054576368,0.9,201.05,201.01,14.43245343]
[1759054576565,0.7,201.04,201.02,38.12]
[1759054576746,0.7,201.03,201.02,38.12]
[1759054577352,0.7,201.03,201.02,43.09462939]
[1759054577958,0.7,201.03,201.02,4.97462939]
[1759054578163,0.7,201.03,201.02,43.09462939]
[1759054585666,0.71,201.04,201.02,55.53120286]
[1759054588577,0.71,201.03,201.02,55.53120286]
[1759054592066,0.71,201.03,201.02,4.97462939]
[1759054592271,0.71,201.03,201.02,43.09462939]
[1759054594390,0.71,201.03,201.02,38.12]
[1759054595277,0.71,201.03,201.01,38.12]
[1759054595490,0.71,201.02,201.01,38.12]
[1759054595869,0.71,201.02,201.01,43.09487687]
[1759054597290,0.71,201.02,201.01,6.97053631]
[1759054598576,0.71,201.02,200.99,4.9753719]
[1759054598771,0.71,201.01,201.0,1.99585859]
[1759054600889,0.71,201.01,200.95,12.44031752]
[1759054601196,0.71,201.0,200.96,1.99605778]
[1759054601400,0.71,200.99,200.96,1.99605778]
[1759054601604,0.71,200.98,200.96,1.99605778]
[1759054601814,0.71,200.97,200.96,1.99605778]
[1759054603806,0.71,200.97,200.94,4.97658511]
[1759054604113,0.71,200.96,200.94,12.44219474]
[1759054604314,0.71,200.95,200.94,12.44219474]
[1759054604490,0.71,200.95,200.91,4.97735304]
[1759054604691,0.71,200.94,200.91,4.97735304]
[1759054605005,0.71,200.93,200.92,12.44447951]
[1759054605388,0.71,200.93,200.92,17.42158482]
[1759054607810,0.71,200.93,200.92,12.44447951]
[1759054609788,0.71,200.93,200.92,17.42158482]
[1759054613520,0.72,200.95,200.92,17.42158482]
[1759054614016,0.72,200.95,200.92,4.97710531]
[1759054614209,0.72,200.94,200.93,14.97416956]
[1759054615917,0.72,200.94,200.93,19.95102717]
[1759054617690,26.0,201.01,200.93,19.95102717]
[1759054617897,0.72,200.98,200.93,19.95102717]
[1759054618206,0.72,200.97,200.89,24.88830012]
[1759054618405,0.72,200.97,200.94,14.97267487]
[1759054618912,0.72,200.98,200.91,13.59559401]
[1759054619106,0.72,200.98,200.95,14.97118047]
[1759054619308,0.72,200.97,200.95,14.97118047]
[1759054620517,0.72,200.99,200.96,4.97611464]
[1759054620724,26.0,201.02,200.96,4.97611464]
[1759054621018,0.72,201.01,200.96,4.97611464]
[1759054621240,0.72,201.0,200.97,14.97118047]
[1759054621402,0.72,200.99,200.91,17.42012601]
[1759054621602,0.72,200.98,200.91,17.42012601]
[1759054621922,0.72,200.97,200.91,17.42012601]
[1759054622218,0.72,200.96,200.92,14.97342217]
[1759054622398,0.72,200.95,200.93,38.12]
[1759054622799,26.0,201.01,200.93,38.12]
[1759054623118,26.0,201.01,200.91,12.44277297]
[1759054623119,0.72,200.94,200.92,43.09710531]
[1759054623722,0.72,200.94,200.93,14.97342217]
[1759054625021,0.72,200.96,200.93,19.95027978]
[1759054625219,0.72,200.96,200.93,32.39242381]
[1759054625522,0.72,200.96,200.93,17.41900164]
[1759054625697,0.72,200.96,200.94,14.97342218]
[1759054626098,0.72,200.96,200.93,17.41900164]
[1759054626325,0.72,200.96,200.95,19.94978444]
[1759054628225,0.72,200.96,200.95,14.97342217]
[1759054628427,0.72,200.96,200.95,19.94978444]
[1759054630425,12.63473675,201.05,200.95,32.39069013]
[1759054630426,0.65,201.01,200.95,32.39069013]
[1759054630628,0.65,201.03,200.95,32.39069013]
[1759054630928,0.65,201.04,200.96,13.59559401]
[1759054631136,0.65,201.04,200.97,38.12]
[1759054631634,0.2,201.05,200.98,1.99565944]
[1759054631817,0.65,201.04,200.98,1.99565944]
[1759054632339,0.65,201.04,200.99,17.41380167]
[1759054632634,0.65,201.04,201.0,38.12]
[1759054633006,0.65,201.03,201.01,1.99555988]
[1759054633212,0.2,201.05,201.01,40.11555988]
[1759054633515,0.65,201.04,201.01,38.12]
[1759054633726,0.2,201.05,201.02,14.96744581]
[1759054634048,0.65,201.03,201.02,14.96744581]
[1759054636531,0.65,201.03,201.0,4.9750701]
[1759054636733,0.65,201.02,201.0,43.0950701]
[1759054636920,0.65,201.02,201.01,14.96819259]
[1759054637535,0.65,201.02,201.01,19.94306946]
[1759054638035,0.65,201.02,201.01,14.96819259]
[1759054644825,0.65,201.02,201.0,38.12]
[1759054645334,0.65,201.02,201.01,1.9958586]
[1759054650049,0.65,201.02,200.98,38.1]
[1759054650228,0.67,201.01,200.98,38.1]
[1759054650429,0.67,201.0,200.98,38.1]
[1759054651451,0.67,201.0,200.98,4.97545018]
[1759054651649,0.67,201.01,200.99,38.1]
[1759054651830,26.0,201.04,200.99,38.1]
[1759054652032,0.67,201.03,200.98,19.94588358]
[1759054652251,0.67,201.03,200.99,38.1]
[1759054652529,0.67,201.03,200.99,53.06893945]
[1759054652744,0.67,201.03,200.99,38.1]
[1759054653156,0.67,201.03,201.0,19.94406382]
[1759054654259,0.67,201.03,201.01,43.07475343]
[1759054656451,0.67,201.02,201.01,38.1]
[1759054656655,0.67,201.02,200.94,160.7]
[1759054656656,0.67,201.02,200.95,12.44035351]
[1759054656852,0.67,201.01,200.98,14.97043339]
[1759054657035,0.67,201.0,200.99,38.1]
[1759054658452,0.67,201.0,200.95,12.44035351]
[1759054658649,30.97428103,201.04,200.96,43.07608418]
[1759054658650,0.67,200.99,200.96,43.07608418]
[1759054658836,0.67,200.98,200.96,58.04726466]
[1759054660460,0.67,200.97,200.96,14.97118048]
[1759054660674,0.67,200.97,200.95,38.1]
[1759054660838,0.67,200.96,200.94,53.07342218]
[1759054661238,0.67,200.95,200.94,53.07342218]
[1759054662166,4.97429548,201.04,200.94,58.05003211]
[1759054662334,0.67,200.98,200.94,58.05003211]
[1759054662534,0.67,200.98,200.94,43.07660993]
[1759054662739,0.67,200.97,200.94,43.07660993]
[1759054662955,0.67,200.96,200.95,14.97267486]
[1759054663145,0.67,200.96,200.94,43.07660993]
[1759054663461,0.67,200.96,200.94,58.05003211]
[1759054664866,0.67,200.98,200.94,58.05003211]
[1759054665039,0.67,200.97,200.94,58.05003211]
[1759054666962,26.0,201.01,200.94,58.05003211]
[1759054667149,0.67,201.0,200.94,58.05003211]
[1759054667351,0.67,200.99,200.94,58.05003211]
[1759054668858,0.67,200.98,200.94,58.05003211]
[1759054669040,0.67,200.97,200.94,58.05003211]
[1759054669240,0.67,200.96,200.94,58.05003211]
[1759054670467,0.66,200.98,200.94,58.05003211]
[1759054670758,0.66,200.97,200.94,58.05003211]
[1759054674545,0.66,200.97,200.94,19.95003211]
[1759054674950,0.66,200.99,200.95,38.1]
[1759054675150,0.66,200.98,200.95,38.1]
[1759054675467,0.66,200.98,200.94,19.95003211]
[1759054675650,0.66,200.98,200.95,38.1]
[1759054675852,0.66,200.98,200.95,53.07267487]
[1759054676167,0.66,200.97,200.95,53.07267487]
[1759054676548,0.66,200.97,200.96,4.97611464]
[1759054680266,0.2,201.05,200.96,4.97611464]
[1759054680472,0.66,201.03,200.97,38.1]
[1759054680647,0.66,201.03,200.97,53.06968639]
[1759054680851,0.66,201.03,200.97,14.96968639]
[1759054681051,0.66,201.03,200.98,38.1]
[1759054681283,0.66,201.02,200.98,38.1]
[1759054681464,0.66,201.01,200.98,38.1]
[1759054681773,0.66,201.01,200.99,14.96968638]
[1759054681973,0.66,201.01,201.0,38.1]
[1759054682379,0.66,201.01,200.99,14.96968638]
[1759054682599,0.66,201.0,200.98,38.1]
[1759054682750,18.76961875,201.05,200.97,53.07118047]
[1759054682751,0.66,200.99,200.97,53.07118047]
[1759054682956,26.0,201.02,200.97,53.07118047]
[1759054682957,0.66,200.98,200.97,53.07118047]
[1759054683481,0.66,200.98,200.94,4.97660993]
[1759054683779,0.66,200.98,200.95,53.07267487]
[1759054684071,0.66,200.98,200.95,14.97267487]
[1759054684383,0.66,200.98,200.96,38.1]
[1759054685272,0.66,200.97,200.95,19.94899978]
[1759054685576,0.66,200.96,200.95,43.07632491]
[1759054685876,30.97465896,201.02,200.95,43.07632491]
[1759054685877,30.97465896,201.02,200.95,4.97632491]
[1759054686176,0.66,201.01,200.95,43.07632491]
[1759054686380,0.66,201.0,200.95,43.07632491]
[1759054686566,0.66,200.99,200.95,43.07632491]
[1759054688167,0.66,200.99,200.95,4.97632491]
[1759054688509,0.66,200.98,200.95,43.07632491]
[1759054688971,0.66,200.98,200.95,4.97632491]
[1759054689175,0.66,200.98,200.95,43.07632491]
[1759054689564,26.0,201.02,200.95,43.07632491]
[1759054689884,26.66,201.01,200.95,4.97632491]
[1759054690063,0.66,201.0,200.95,43.07632491]
[1759054690264,0.66,200.99,200.95,43.07632491]
[1759054690986,0.66,200.99,200.96,14.97342218]
[1759054691365,26.0,201.01,200.96,19.94947444]
[1759054691666,0.66,201.0,200.96,19.94947444]
[1759054691865,0.66,200.99,200.96,19.94947444]
[1759054692073,0.66,200.98,200.96,19.94947444]
[1759054692686,0.66,201.01,200.96,19.94947444]
[1759054692889,0.2,201.05,200.96,4.97605226]
[1759054693073,0.66,201.04,200.96,4.97605226]
[1759054693390,0.66,201.04,200.97,14.97043339]
[1759054693590,0.66,201.04,200.98,38.1]
[1759054693960,0.66,201.04,200.99,4.9753719]
[1759054694200,0.66,201.04,200.99,19.9458053]
[1759054694659,0.66,201.04,200.99,4.9753719]
[1759054694864,0.66,201.04,201.0,14.9704334]
[1759054695470,26.2,201.05,201.0,14.9704334]
[1759054695680,26.86,201.05,201.0,38.1]
[1759054695881,26.86,201.05,201.01,14.96968639]
[1759054696074,26.86,201.05,201.01,19.94440769]
[1759054698476,0.86,201.05,201.01,4.9747213]
[1759054698687,0.86,201.05,201.01,43.0747213]
[1759054698888,0.86,201.05,201.01,56.67031531]
[1759054699202,0.86,201.05,201.01,43.0747213]
[1759054699382,0.86,201.05,201.02,14.96893946]
[1759054699872,0.66,201.04,201.02,19.94334069]
[1759054700984,0.66,201.04,201.02,4.97440123]
[1759054701183,0.66,201.04,201.03,1.99575902]
[1759054703197,0.66,201.04,201.03,6.97014095]
[1759054703385,0.2,201.05,201.03,6.97014095]
[1759054703574,0.88,201.05,201.03,6.97014095]
[1759054703771,0.68,201.04,201.03,1.99575902]
[1759054703977,0.68,201.04,201.01,38.1]
[1759054704201,0.68,201.03,201.01,40.09595818]
[1759054704379,0.68,201.02,201.01,40.09595818]
[1759054705184,0.68,201.02,201.01,1.99595818]
[1759054706293,0.68,201.02,201.01,6.97083505]
[1759054706494,0.68,201.04,201.01,6.97083505]
[1759054706800,0.68,201.02,201.01,1.99595818]
[1759054709193,0.68,201.02,200.99,43.07537029]
[1759054709385,0.68,201.01,201.0,1.99605778]
[1759054709801,0.68,201.03,201.0,1.99605778]
[1759054709980,0.68,201.02,201.0,1.99605778]
[1759054711698,0.2,201.05,201.0,1.99605778]
[1759054711878,0.68,201.01,201.0,1.99605778]
[1759054712400,0.2,201.05,201.0,1.99605778]
[1759054712596,0.68,201.04,201.0,1.99605778]
[1759054712802,0.68,201.03,201.0,6.97114115]
[1759054713185,0.68,201.03,201.0,43.07508337]
[1759054713499,0.68,201.04,201.01,1.99595819]
[1759054713693,0.68,201.04,201.01,40.09595819]
[1759054713885,0.68,201.04,201.01,43.07468734]
[1759054714087,0.2,201.05,201.02,1.9958586]
[1759054714288,0.68,201.04,201.02,1.9958586]
[1759054714497,0.2,201.05,201.02,1.9958586]
[1759054714691,0.68,201.03,201.02,1.9958586]
[1759054714886,0.68,201.04,201.02,1.9958586]
[1759054715082,0.68,201.03,201.02,1.9958586]
[1759054717105,0.68,201.03,201.01,43.07468734]
[1759054721213,0.68,201.04,201.01,43.05468734]
[1759054723218,0.68,201.03,201.01,43.05468734]
[1759054724101,0.68,201.03,201.01,4.97468734]
[1759054724303,0.68,201.03,201.01,38.08]
[1759054724504,0.68,201.04,201.01,38.08]
[1759054724704,0.68,201.03,201.01,38.08]
[1759054725799,0.68,201.03,201.01,43.05480883]
[1759054726201,0.68,201.03,201.01,4.97480883]
[1759054726407,0.68,201.03,201.01,43.05480883]
[1759054726801,0.68,201.04,201.01,43.05480883]
[1759054728001,0.68,201.04,201.01,4.97480883]
[1759054728208,0.68,201.04,201.01,43.05480883]
[1759054728726,0.68,201.03,201.01,43.05480883]
[1759054736639,0.2,201.05,201.02,38.08]
[1759054736830,0.72,201.04,201.02,38.08]
[1759054739533,0.2,201.05,201.02,43.05456904]
[1759054739709,0.92,201.05,201.02,43.05456904]
[1759054740537,0.72,201.04,201.02,38.08]
[1759054741350,0.2,201.05,201.02,43.05449302]
[1759054741519,0.72,201.04,201.02,43.05449302]
[1759054741720,0.2,201.05,201.02,4.97449302]
[1759054742032,0.2,201.05,201.03,38.08]
[1759054742216,0.2,201.05,201.03,42.13231364]
[1759054742418,0.2,201.05,201.04,38.08]
[1759054743032,0.2,201.05,201.04,43.0541345]
[1759054744234,0.2,201.05,201.04,45.04959482]
[1759054745338,0.2,201.05,201.04,6.96959482]
[1759054745817,0.2,201.05,201.04,45.04959482]
[1759054746237,0.2,201.05,201.04,6.96959482]
[1759054746436,0.2,201.05,201.04,45.04959482]
[1759054747133,0.2,201.05,201.04,6.96959482]
[1759054747336,0.2,201.05,201.04,45.04959482]
[1759054748329,0.2,201.05,201.04,6.96959482]
[1759054748530,0.2,201.05,201.04,45.04959482]
[1759054752518,0.2,201.05,201.04,179.74959482]
[1759054753341,0.2,201.05,201.04,179.72959482]
[1759054754939,0.2,201.05,201.04,141.66959482]
[1759054755146,0.2,201.05,201.04,179.72959482]
[1759054755652,0.2,201.06,201.05,28.55559401]
[1759054755653,1e-08,201.06,201.05,28.55559401]
[1759054755823,1e-08,201.06,201.05,29.05298271]
[1759054756351,1e-08,201.06,201.05,73.00678418]
[1759054756529,0.2,201.13,201.11,26.0]
[1759054756724,0.2,201.13,201.11,64.06]
[1759054757136,0.2,201.13,201.11,71.02666964]
[1759054757551,0.2,201.13,201.11,84.62226365]
[1759054759838,0.2,201.13,201.11,32.96666964]
[1759054760151,0.2,201.13,201.11,71.02666964]
[1759054762354,0.2,201.13,201.11,205.72666964]
[1759054763756,0.2,201.13,201.11,167.66666964]
[1759054763941,0.2,201.13,201.11,205.72666964]
[1759054765852,0.2,201.13,201.11,219.32226365]
[1759054769642,0.2,201.13,201.11,181.26226365]
[1759054769842,0.2,201.13,201.11,219.30226365]
[1759054771132,0.2,201.13,201.11,181.26226365]
[1759054771330,0.2,201.13,201.11,219.30226365]
[1759054771733,0.2,201.13,201.11,181.26226365]
[1759054771957,0.2,201.13,201.11,219.30226365]
[1759054772640,0.86,201.12,201.11,32.96666964]
[1759054773155,0.86,201.12,201.11,71.00666964]
[1759054774065,0.2,201.12,201.11,71.00666964]
[1759054775767,0.86,201.12,201.11,71.00666964]
[1759054777156,0.86,201.12,201.11,32.96666964]
[1759054777347,0.2,201.12,201.11,71.00666964]
[1759054779846,0.86,201.12,201.11,71.00666964]
[1759054780656,0.86,201.12,201.11,32.96666964]
[1759054781065,0.86,201.12,201.11,71.00666964]
[1759054782554,0.86,201.12,201.11,32.96666964]
[1759054782850,0.86,201.12,201.11,71.00666964]
[1759054788542,0.86,201.12,201.11,32.96666964]
[1759054788742,0.86,201.12,201.11,45.00666964]
[1759054789153,0.86,201.12,201.11,6.96666964]
[1759054789351,0.86,201.12,201.11,45.00666964]
[1759054789763,0.86,201.12,201.11,6.96666964]
[1759054789965,0.86,201.12,201.11,45.00666964]
[1759054792149,0.2,201.12,201.11,45.00666964]
[1759054793777,0.86,201.12,201.11,45.00666964]
[1759054800876,0.2,201.12,201.11,45.00666964]
[1759054801486,0.86,201.12,201.11,45.00666964]
[1759054802172,0.86,201.12,201.11,1.99426648]
[1759054802478,0.86,201.12,201.11,45.00666964]
[1759054802680,0.2,201.12,201.11,45.00666964]
[1759054807362,0.2,201.12,201.11,58.60226365]
[1759054811792,0.2,201.13,201.11,84.60226365]
[1759054812097,0.2,201.13,201.11,82.60799717]
[1759054812471,0.2,201.13,201.12,1.99416706]
[1759054812898,0.2,201.13,201.12,136.69416706]
[1759054813091,0.2,201.13,201.12,150.28976107]
[1759054813472,0.2,201.15,201.12,167.6923068]
[1759054813678,0.2,201.15,201.13,38.02]
[1759054814180,0.2,201.15,201.14,1.99406765]
[1759054816681,0.2,201.15,201.14,6.96572917]
[1759054817393,0.2,201.15,201.14,46.56132318]
[1759054817597,0.2,201.15,201.14,84.58132318]
[1759054819498,0.2,201.15,201.14,70.98572917]
[1759054819694,0.89,201.15,201.14,70.98572917]
[1759054821478,0.89,201.15,201.14,32.96572917]
[1759054821886,0.89,201.15,201.14,6.96572917]
[1759054822080,0.89,201.15,201.14,44.98572917]
[1759054829110,0.89,201.15,201.14,6.96572917]
[1759054829300,0.89,201.15,201.14,44.98572917]
[1759054832420,0.89,201.15,201.14,6.96572917]
[1759054832593,0.89,201.15,201.14,44.98572917]
[1759054840004,0.2,201.15,201.14,44.98572917]
[1759054840496,0.2,201.15,201.14,6.96572917]
[1759054840697,0.2,201.15,201.14,44.98572917]
[1759054842718,0.2,201.15,201.14,179.68572917]
[1759054846226,0.2,201.15,201.14,193.28132318]
[1759054846521,0.2,201.15,201.14,155.26132318]
[1759054846714,0.2,201.15,201.14,193.28132318]
[1759054849202,0.2,201.15,201.14,155.26132318]
[1759054849405,0.2,201.15,201.14,193.28132318]
[1759054850333,1e-08,201.15,201.14,234.24132318]
[1759054850701,1e-08,201.15,201.14,196.22132318]
[1759054850908,1e-08,201.15,201.14,234.24132318]
[1759054851604,1e-08,201.15,201.14,196.22132318]
[1759054851908,1e-08,201.15,201.14,234.24132318]
[1759054856626,1e-08,201.15,201.14,196.22132318]
[1759054857123,1e-08,201.15,201.14,234.22132318]
[1759054858407,1e-08,201.16,201.15,13.59559401]
[1759054858608,1e-08,201.16,201.15,51.59559401]
[1759054859314,1e-08,201.16,201.15,53.58926411]
[1759054860327,1e-08,201.16,201.15,58.56067847]
[1759054860531,1e-08,201.16,201.15,155.26067847]
[1759054860731,1e-08,201.16,201.15,193.26067847]
[1759054862322,1e-08,201.16,201.15,155.26067847]
[1759054862523,1e-08,201.16,201.15,193.26067847]
[1759054862720,1e-08,201.16,201.15,208.22067847]
[1759054863325,0.71000001,201.16,201.15,193.26067847]
[1759054863526,0.71000001,201.16,201.15,155.26067847]
[1759054863837,0.71000001,201.16,201.15,193.26067847]
[1759054865950,0.71000001,201.16,201.15,155.26067847]
[1759054866118,0.71000001,201.16,201.15,193.26067847]
[1759054867017,0.71000001,201.16,201.15,155.26067847]
[1759054867242,0.71000001,201.16,201.15,193.26067847]
[1759054867439,0.71000001,201.16,201.15,155.26067847]
[1759054867616,0.71000001,201.16,201.15,208.22067847]
[1759054867938,0.71000001,201.16,201.15,193.26067847]
[1759054872533,0.71000001,201.16,201.15,141.66508446]
[1759054872735,0.71000001,201.16,201.15,179.66508446]
[1759054874644,0.71000001,201.16,201.15,141.66508446]
[1759054874830,0.71000001,201.16,201.15,179.66508446]
[1759054875242,0.71000001,201.16,201.15,1.9936701]
[1759054875431,0.71000001,201.16,201.15,39.9936701]
[1759054877319,0.71000001,201.16,201.15,1.9936701]
[1759054877630,0.71000001,201.16,201.15,39.9936701]
[1759054878126,0.71000001,201.16,201.15,1.9936701]
[1759054878336,0.71000001,201.16,201.14,38.0]
[1759054878540,0.67,201.15,201.14,39.99456481]
[1759054879130,0.67,201.15,201.14,1.99456481]
[1759054888049,0.67,201.15,201.12,38.0]
[1759054888346,1e-08,201.16,201.12,5.17073584]
[1759054888347,0.7,201.14,201.12,5.17073584]
[1759054888537,0.7,201.13,201.12,5.17073584]
[1759054889453,0.7,201.13,201.09,38.0]
[1759054889649,0.7,201.12,201.11,4.97120695]
[1759054890433,0.7,201.12,201.09,38.0]
[1759054890633,0.7,201.11,201.05,4.97383885]
[1759054890838,30.97175109,201.14,201.1,4.97162023]
[1759054891037,30.97175109,201.14,201.06,38.0]
[1759054891237,30.97175109,201.14,201.07,14.96296666]
[1759054891466,0.7,201.13,201.07,14.96296666]
[1759054891653,0.7,201.12,201.07,14.96296666]
[1759054891956,0.7,201.11,201.07,14.96296666]
[1759054892248,0.7,201.1,201.07,14.96296666]
[1759054892555,0.7,201.09,201.07,14.96296666]
[1759054892729,4.97208888,201.13,201.07,14.96296666]
[1759054892730,0.7,201.08,201.07,14.96296666]
[1759054894129,0.7,201.08,201.05,38.02]
[1759054894329,0.7,201.07,201.05,52.9852059]
[1759054894529,0.7,201.06,201.05,52.9852059]
[1759054896643,0.7,201.06,201.05,14.9652059]
[1759054897651,0.7,201.08,201.05,4.97388709]
[1759054897856,0.7,201.07,201.05,4.97388709]
[1759054900558,0.7,201.1,201.06,38.02]
[1759054900867,0.7,201.1,201.06,52.98296666]
[1759054901260,0.7,201.1,201.06,38.02]
[1759054901635,4.97130291,201.16,201.07,4.97339235]
[1759054901636,0.7,201.12,201.07,4.97339235]
[1759054901843,0.7,201.12,201.08,38.02]
[1759054902036,0.7,201.11,201.08,38.02]
[1759054902268,0.7,201.1,201.08,38.02]
[1759054903741,0.7,201.12,201.08,42.99298278]
[1759054903954,0.7,201.11,201.08,42.99298278]
[1759054904154,0.7,201.13,201.08,42.99298278]
[1759054904461,0.7,201.12,201.08,42.99298278]